[Event "SUNWAY"]
[Date "2016.12.17"]
[Round "3.14"]
[White "Peralta, Fernando"]
[Black "Vehi Bach, Victor Manuel"]
[Result "1-0"]
[WhiteElo "2574"]
[BlackElo "2332"]
[ECO "E48"]
[WhiteFed "ARG"]
[BlackFed "ESP"]
[FCGameId "1766617851"]
[TimeControl "5400+30"]

1. d4 {[%clk 1:30:57]} Nf6 {[%clk 1:29:29]} 2. c4 {[%clk 1:31:22]} e6  {[%clk 1:29:50]} 3. Nc3 {[%clk 1:31:46]} Bb4 {[%clk 1:30:11]} 4. e3  {[%clk 1:32:09]} O-O {[%clk 1:30:27]} 5. Bd3 {[%clk 1:32:11]} d5  {[%clk 1:30:35]} 6. cxd5 {[%clk 1:32:10]} exd5 {[%clk 1:30:55]} 7. Ne2  {[%clk 1:32:36]} Re8 {[%clk 1:30:43]} 8. O-O {[%clk 1:32:38]} a5  {[%clk 1:30:50]} 9. f3 c5 {[%clk 1:13:41]} 10. a3 {[%clk 1:17:10]} cxd4  {[%clk 1:13:47]} 11. exd4 {[%clk 1:14:07]} Be7 {[%clk 1:01:18]} 12. Bf4  {[%clk 1:10:23]} Qb6 {[%clk 0:52:30]} 13. Nb5 Na6 {[%clk 0:44:09]} 14. Rc1  {[%clk 0:53:16]} Rf8 {[%clk 0:42:25]} 15. Nec3 {[%clk 0:48:03]} Bd7  {[%clk 0:35:32]} 16. Na4 {[%clk 0:36:46]} Qd8 {[%clk 0:35:53]} 17. Nc7  {[%clk 0:36:39]} Ra7 {[%clk 0:08:58]} 18. Nb6 {[%clk 0:28:52]} Nh5  {[%clk 0:05:16]} 19. Be5 {[%clk 0:24:54]} f6 {[%clk 0:02:07]} 20. Nxd7  {[%clk 0:23:27]} fxe5 {[%clk 0:02:09]} 21. Nxf8 {[%clk 0:14:53]} Nxc7  {[%clk 0:02:32]} 22. Nxh7 {[%clk 0:15:06]} Nf4 {[%clk 0:02:28]} 23. dxe5  {[%clk 0:14:23]} Nce6 {[%clk 0:01:13]} 24. g3 {[%clk 0:11:11]} Nxd3  {[%clk 0:01:20]} 25. Qxd3 {[%clk 0:11:38]} Ra6 {[%clk 0:01:35]} 26. f4 Nc5  {[%clk 0:01:43]} 27. Qf5 {[%clk 0:07:27]} 1-0

[Event "SUNWAY"]
[Date "2016.12.17"]
[Round "3.15"]
[White "Lopez Martinez, Josep Manuel"]
[Black "Pradeep Kumar R A"]
[Result "1-0"]
[WhiteElo "2552"]
[BlackElo "2330"]
[ECO "E73"]
[WhiteFed "ESP"]
[BlackFed "IND"]
[FCGameId "-2090219442"]
[TimeControl "5400+30"]

1. d4 Nf6 2. c4 g6 3. Nc3 Bg7 4. e4 d6 5. Be2 O-O 6. Be3 e5 7. d5 a5 8. g4 Na6  9. g5 Ne8 10. h4 f5 11. gxf6 Bxf6 12. h5 Bg5 13. Qd2 Bxe3 14. Qxe3 Qf6 15. hxg6  hxg6 16. Nf3 Qf4 17. Qxf4 Rxf4 18. Kd2 Nf6 19. Rag1 Rg4 20. Nh4 Rxg1 21. Rxg1  Kf7 22. f4 exf4 23. Nxg6 Nc5 24. Nxf4 Ncxe4+ 25. Nxe4 Nxe4+ 26. Ke3 Nf6 27. Nh5  Ne8 28. Bd3 c6 29. Bg6+ Ke7 30. Bxe8 Kxe8 31. Rg7 cxd5 32. cxd5 Kd8 33. Nf6 Ra6  34. Kd2 Rb6 35. Kc3 Rb5 36. a3 a4 37. Rg8+ Kc7 38. Rg2 Kb6 39. Kc4 Bf5 40. Kd4  Rb3 41. Ne8 Rd3+ 42. Kc4 Rd1 43. Nxd6 Bb1 44. Nc8+ Kc7 45. Ne7 Kd6 46. Rg7 Rc1+  47. Kb4 Rc7 48. Rg1 Bd3 49. Rg3 Be4 50. Ng8 Rf7 51. Kxa4 Bxd5 52. Rg6+ Ke5 53.  Kb5 Rf3 54. Ne7 Be4 55. Rb6 Rg3 56. Ka5 Rg4 57. Nc8 Bc6 58. Rb3 Ra4+ 59. Kb6 Bd5  60. Rb5 Ra6+ 61. Kc7 Rc6+ 62. Kd7 Kd4 63. Rxd5+ Kc4 64. Rd6 1-0

[Event "SUNWAY"]
[Date "2016.12.17"]
[Round "3.16"]
[White "Harsha Bharathakoti"]
[Black "Sunilduth Lyna, Narayanan"]
[Result "1/2-1/2"]
[WhiteElo "2332"]
[BlackElo "2541"]
[ECO "D97"]
[WhiteFed "IND"]
[BlackFed "IND"]
[FCGameId "59617587"]
[TimeControl "5400+30"]

1. d4 {[%clk 1:30:54]} Nf6 {[%clk 1:30:56]} 2. c4 {[%clk 1:31:14]} g6  {[%clk 1:31:21]} 3. Nc3 {[%clk 1:31:17]} d5 {[%clk 1:31:37]} 4. Nf3  {[%clk 1:30:32]} Bg7 {[%clk 1:32:02]} 5. Qb3 {[%clk 1:30:52]} dxc4  {[%clk 1:31:42]} 6. Qxc4 {[%clk 1:31:14]} O-O {[%clk 1:32:09]} 7. e4  {[%clk 1:31:23]} Nc6 {[%clk 1:32:07]} 8. Be2 {[%clk 1:31:10]} Bg4  {[%clk 1:30:08]} 9. d5 {[%clk 1:29:51]} Na5 {[%clk 1:29:32]} 10. Qb4  {[%clk 1:28:49]} Bxf3 {[%clk 1:29:38]} 11. Bxf3 {[%clk 1:27:26]} c6  {[%clk 1:30:03]} 12. O-O {[%clk 1:25:32]} cxd5 {[%clk 1:20:43]} 13. exd5  {[%clk 1:16:46]} Rc8 {[%clk 1:20:07]} 14. Rd1 {[%clk 1:11:44]} Ne8  {[%clk 1:00:00]} 15. Be3 {[%clk 0:48:44]} Nc4 {[%clk 0:52:48]} 16. Bd4  {[%clk 0:48:03]} Ned6 {[%clk 0:52:29]} 17. Bg4 {[%clk 0:42:05]} Bxd4  {[%clk 0:41:45]} 18. Rxd4 {[%clk 0:41:14]} f5 {[%clk 0:42:05]} 19. Be2  {[%clk 0:41:18]} Qb6 {[%clk 0:42:09]} 20. Qxb6 {[%clk 0:38:52]} Nxb6  {[%clk 0:41:53]} 21. Re1 {[%clk 0:35:05]} Rc7 {[%clk 0:37:42]} 22. Bd3  {[%clk 0:29:27]} Rfc8 {[%clk 0:37:27]} 23. f3 {[%clk 0:18:48]} a6  {[%clk 0:37:30]} 24. Re2 {[%clk 0:16:30]} Kf7 {[%clk 0:36:16]} 25. Kf2  {[%clk 0:15:42]} Nbc4 {[%clk 0:35:44]} 26. Bxc4 {[%clk 0:15:01]} Rxc4  {[%clk 0:34:42]} 27. Rd3 {[%clk 0:12:03]} b5 {[%clk 0:33:50]} 28. Nd1  {[%clk 0:09:23]} Rc1 {[%clk 0:30:22]} 29. b3 {[%clk 0:08:08]} Ra1  {[%clk 0:27:00]} 30. g3 {[%clk 0:04:55]} Rcc1 {[%clk 0:24:20]} 31. Ne3  {[%clk 0:03:08]} Rh1 {[%clk 0:23:53]} 32. Kg2 {[%clk 0:02:48]} Rag1+  {[%clk 0:23:09]} 33. Kh3 {[%clk 0:03:11]} Re1 {[%clk 0:20:52]} 34. Rxe1  {[%clk 0:01:28]} Rxe1 {[%clk 0:21:16]} 35. Nc2 {[%clk 0:01:50]} Re2  {[%clk 0:20:59]} 36. Nb4 {[%clk 0:00:55]} g5 {[%clk 0:19:39]} 37. g4  {[%clk 0:00:58]} fxg4+ {[%clk 0:18:40]} 38. fxg4 {[%clk 0:00:38]} Ne4  {[%clk 0:17:33]} 39. Rf3+ {[%clk 0:01:02]} Kg6 {[%clk 0:17:51]} 40. Nc6  {[%clk 0:30:48]} Nf6 {[%clk 0:48:07]} 41. Rd3 {[%clk 0:29:11]} Kf7  {[%clk 0:29:34]} 42. Nd8+ {[%clk 0:20:43]} Kg6 {[%clk 0:29:54]} 43. Nc6  {[%clk 0:20:04]} h5 {[%clk 0:30:15]} 44. gxh5+ {[%clk 0:18:32]} Nxh5  {[%clk 0:27:29]} 45. d6 {[%clk 0:15:55]} Nf4+ {[%clk 0:24:33]} 46. Kg4  {[%clk 0:14:13]} Nxd3 {[%clk 0:20:39]} 47. d7 {[%clk 0:14:35]} Nf2+  {[%clk 0:19:20]} 48. Kf3 {[%clk 0:14:39]} Rd2 {[%clk 0:19:44]} 49. d8=Q  {[%clk 0:14:45]} Rxd8 {[%clk 0:20:10]} 50. Nxd8 {[%clk 0:15:09]} Nd3  {[%clk 0:20:20]} 51. Nc6 {[%clk 0:13:40]} e6 {[%clk 0:20:14]} 52. Ke3  {[%clk 0:10:33]} Nc1 {[%clk 0:18:09]} 53. Nb4 {[%clk 0:10:52]} a5  {[%clk 0:17:45]} 54. Nc6 {[%clk 0:11:17]} Nxa2 {[%clk 0:18:02]} 55. Nxa5  {[%clk 0:11:30]} Kf5 {[%clk 0:17:34]} 56. Nc6 {[%clk 0:11:32]} e5  {[%clk 0:17:44]} 57. Na7 {[%clk 0:03:50]} b4 {[%clk 0:18:07]} 58. Nc6  {[%clk 0:04:14]} g4 {[%clk 0:16:52]} 59. Ne7+ {[%clk 0:03:15]} Ke6  {[%clk 0:17:12]} 60. Nc6 {[%clk 0:03:33]} Kd5 {[%clk 0:17:25]} 61. Ne7+  {[%clk 0:03:41]} Kd6 {[%clk 0:17:37]} 62. Nf5+ {[%clk 0:02:35]} Ke6  {[%clk 0:17:54]} 63. Nh6 {[%clk 0:02:57]} Nc1 {[%clk 0:18:19]} 64. Nxg4  {[%clk 0:03:22]} Nxb3 {[%clk 0:18:46]} 65. Nf2 {[%clk 0:02:19]} Nc5  {[%clk 0:17:46]} 66. Nd1 {[%clk 0:02:30]} Kf5 {[%clk 0:16:51]} 67. Nb2  {[%clk 0:02:32]} b3 {[%clk 0:16:32]} 68. Kd2 {[%clk 0:01:25]} e4  {[%clk 0:15:01]} 69. Ke3 {[%clk 0:00:58]} Kg4 {[%clk 0:15:10]} 70. Nc4  {[%clk 0:00:38]} Kh3 {[%clk 0:15:22]} 71. Kd4 {[%clk 0:01:03]} Kxh2  {[%clk 0:15:07]} 72. Kxc5 {[%clk 0:01:28]} e3 {[%clk 0:15:24]} 73. Nxe3  {[%clk 0:01:54]} b2 {[%clk 0:15:49]} 74. Nf1+ {[%clk 0:02:22]} 1/2-1/2

[Event "SUNWAY"]
[Date "2016.12.17"]
[Round "3.17"]
[White "Burmakin, Vladimir"]
[Black "Ayats Llobera, Gerard"]
[Result "1-0"]
[WhiteElo "2535"]
[BlackElo "2315"]
[ECO "A48"]
[WhiteFed "RUS"]
[BlackFed "ESP"]
[FCGameId "2086066764"]
[TimeControl "5400+30"]

1. d4 Nf6 2. Nf3 g6 3. Bf4 Bg7 4. e3 O-O 5. Be2 d6 6. O-O Nh5 7. Bg5 h6 8. Bh4  g5 9. Nfd2 Nf6 10. Bg3 c5 11. c3 Nbd7 12. a4 d5 13. h4 gxh4 14. Bxh4 e5 15. Nf3  Qc7 16. Nbd2 Ne4 17. Rc1 Qb6 18. dxe5 Qxb2 19. Nxe4 dxe4 20. Nd2 Qb6 21. Nxe4  Nxe5 22. Be7 Re8 23. Bxc5 Qg6 24. Ng3 b6 25. Bd4 Bb7 26. Bb5 Red8 27. Qh5 Rac8  28. Qxg6 fxg6 29. Rfd1 Kf7 30. Nf1 Nc6 31. Nd2 Na5 32. Rb1 Bc6 33. Bxc6 Rxc6 34.  Nb3 Nxb3 35. Rxb3 Rd5 36. Ra1 Ra5 37. Rb5 Rc4 38. Rxa5 bxa5 39. Ra3 Bf8 40. Ra2  Bc5 41. Kf1 Ke6 42. Ke2 Bxd4 43. cxd4 h5 44. Kd3 Rb4 45. Ke4 Rc4 46. g3 Rb4 47.  f3 Rc4 48. g4 hxg4 49. fxg4 Rb4 50. g5 Rc4 51. Rf2 Rxa4 52. Rf6+ {-error} 1-0

[Event "SUNWAY"]
[Date "2016.12.17"]
[Round "2.1"]
[White "Lorenzo De La Riva, Lazaro"]
[Black "Sasikiran, Krishnan"]
[Result "0-1"]
[WhiteElo "2373"]
[BlackElo "2661"]
[ECO "C99"]
[WhiteFed "ESP"]
[BlackFed "IND"]
[FCGameId "-147649298"]
[TimeControl "5400+30"]

1. e4 {[%clk 1:30:51]} e5 {[%clk 1:30:14]} 2. Nf3 {[%clk 1:31:10]} Nc6  {[%clk 1:30:36]} 3. Bb5 {[%clk 1:31:18]} a6 {[%clk 1:30:58]} 4. Ba4  {[%clk 1:31:45]} Nf6 {[%clk 1:31:18]} 5. O-O {[%clk 1:32:06]} Be7  {[%clk 1:31:34]} 6. Re1 {[%clk 1:32:25]} b5 {[%clk 1:31:32]} 7. Bb3  {[%clk 1:32:52]} O-O {[%clk 1:31:40]} 8. c3 {[%clk 1:33:16]} d6 {[%clk 1:31:45]}  9. h3 {[%clk 1:33:32]} Na5 {[%clk 1:27:07]} 10. Bc2 {[%clk 1:33:31]} c5  {[%clk 1:27:28]} 11. d4 {[%clk 1:33:46]} Qc7 {[%clk 1:26:32]} 12. Nbd2  {[%clk 1:33:24]} cxd4 {[%clk 1:26:27]} 13. cxd4 {[%clk 1:33:48]} Nc6  {[%clk 1:26:46]} 14. d5 {[%clk 1:27:41]} Nb4 {[%clk 1:25:49]} 15. Bb1  {[%clk 1:27:52]} a5 {[%clk 1:25:16]} 16. a3 {[%clk 1:04:55]} Na6  {[%clk 1:25:03]} 17. b4 {[%clk 1:04:09]} Bd7 {[%clk 1:22:19]} 18. Nb3  {[%clk 0:56:25]} axb4 {[%clk 1:10:58]} 19. axb4 {[%clk 0:56:50]} Nxb4  {[%clk 1:09:49]} 20. Ba3 {[%clk 0:54:01]} Ra4 {[%clk 0:58:10]} 21. Qd2  {[%clk 0:46:20]} Qc4 {[%clk 0:50:00]} 22. Rc1 {[%clk 0:31:40]} Qxb3  {[%clk 0:45:44]} 23. Rc3 {[%clk 0:31:01]} Rxa3 {[%clk 0:41:11]} 24. Rxb3  {[%clk 0:31:26]} Rxb3 {[%clk 0:41:35]} 25. Qd1 {[%clk 0:09:04]} Rc3  {[%clk 0:38:41]} 26. Ra7 {[%clk 0:08:50]} Rfc8 {[%clk 0:37:21]} 27. Kh2  {[%clk 0:09:07]} Bd8 {[%clk 0:34:19]} 28. Qd2 {[%clk 0:09:33]} Rb3  {[%clk 0:32:56]} 29. Ba2 {[%clk 0:07:59]} Rbc3 {[%clk 0:26:31]} 30. Bb1  {[%clk 0:08:24]} h6 {[%clk 0:23:53]} 31. Qb2 {[%clk 0:07:51]} Nc2  {[%clk 0:18:05]} 32. Rb7 {[%clk 0:06:07]} Be8 {[%clk 0:13:13]} 33. Bxc2  {[%clk 0:04:56]} Rxc2 {[%clk 0:13:37]} 34. Qb4 {[%clk 0:05:23]} R2c4  {[%clk 0:12:41]} 35. Qxd6 {[%clk 0:04:49]} Nxe4 {[%clk 0:13:02]} 36. Qxe5  {[%clk 0:02:43]} Bf6 {[%clk 0:13:20]} 37. Qh5 {[%clk 0:01:17]} Rd8  {[%clk 0:12:17]} 38. Rb6 {[%clk 0:00:50]} Bd7 {[%clk 0:11:36]} 39. Ne5  {[%clk 0:00:59]} Bxe5+ {[%clk 0:08:57]} 40. Qxe5 {[%clk 0:31:27]} Re8  {[%clk 0:38:34]} 41. Qb2 {[%clk 0:26:06]} Nc5 {[%clk 0:22:59]} 42. Qd2  {[%clk 0:24:34]} h5 {[%clk 0:20:33]} 43. Qa5 {[%clk 0:12:54]} h4  {[%clk 0:14:39]} 44. Rxb5 {[%clk 0:08:52]} Ra4 {[%clk 0:14:04]} 45. Qb6  {[%clk 0:08:09]} Bxb5 {[%clk 0:14:27]} 46. Qxb5 {[%clk 0:08:36]} Rc8  {[%clk 0:14:43]} 47. d6 {[%clk 0:06:56]} Rd4 {[%clk 0:14:33]} 48. Qb6  {[%clk 0:07:02]} Ne6 {[%clk 0:14:28]} 0-1

[Event "SUNWAY"]
[Date "2016.12.17"]
[Round "2.2"]
[White "Ivanisevic, Ivan"]
[Black "Derakhshani, Dorsa"]
[Result "1-0"]
[WhiteElo "2648"]
[BlackElo "2370"]
[ECO "A45"]
[WhiteFed "SRB"]
[BlackFed "IRI"]
[FCGameId "1309561906"]
[TimeControl "5400+30"]

1. d4 {[%clk 1:30:56]} Nf6 {[%clk 1:30:49]} 2. Bg5 {[%clk 1:31:19]} c5  {[%clk 1:30:39]} 3. d5 Qb6 {[%clk 1:29:48]} 4. Nc3 {[%clk 1:31:09]} Qxb2  {[%clk 1:24:41]} 5. Bd2 {[%clk 1:31:31]} Qb6 {[%clk 1:21:04]} 6. e4  {[%clk 1:31:52]} d6 {[%clk 1:21:22]} 7. f4 {[%clk 1:31:31]} Nbd7  {[%clk 1:18:55]} 8. Nf3 {[%clk 1:29:07]} g6 {[%clk 1:16:37]} 9. e5  {[%clk 1:28:59]} dxe5 {[%clk 1:16:16]} 10. fxe5 {[%clk 1:29:21]} Ng4  {[%clk 1:15:55]} 11. Rb1 {[%clk 1:27:12]} Qc7 {[%clk 0:56:25]} 12. d6  {[%clk 1:26:28]} exd6 {[%clk 0:51:46]} 13. Nd5 {[%clk 1:25:37]} Qc6  {[%clk 0:44:00]} 14. Bc3 {[%clk 1:21:37]} dxe5 {[%clk 0:37:04]} 15. Bb5  {[%clk 1:20:53]} Qd6 {[%clk 0:37:27]} 16. h3 {[%clk 1:18:47]} Nf6  {[%clk 0:34:40]} 17. Nxf6+ {[%clk 1:18:12]} Qxf6 {[%clk 0:35:02]} 18. Bxe5  {[%clk 1:18:21]} Qe6 {[%clk 0:30:22]} 19. O-O {[%clk 1:18:20]} Rg8  {[%clk 0:20:30]} 20. Re1 {[%clk 1:14:55]} Kd8 {[%clk 0:20:51]} 21. Bc7+  {[%clk 1:14:12]} Kxc7 {[%clk 0:21:15]} 22. Rxe6 {[%clk 1:14:38]} fxe6  {[%clk 0:21:43]} 23. Bxd7 {[%clk 1:15:02]} Bxd7 {[%clk 0:21:54]} 24. Rxb7+  {[%clk 1:15:27]} Kxb7 {[%clk 0:21:47]} 25. Qxd7+ {[%clk 1:15:51]} 1-0

[Event "SUNWAY"]
[Date "2016.12.17"]
[Round "2.3"]
[White "Panelo, Marcelo"]
[Black "Granda Zuniga, Julio E"]
[Result "0-1"]
[WhiteElo "2372"]
[BlackElo "2646"]
[ECO "E12"]
[WhiteFed "ARG"]
[BlackFed "PER"]
[FCGameId "1650536120"]
[TimeControl "5400+30"]

1. d4 Nf6 2. Nf3 e6 3. c4 b6 4. a3 Bb7 5. Nc3 d5 6. cxd5 exd5 7. Bg5 Be7 8. g3  Nbd7 9. Bg2 O-O 10. O-O Re8 11. Qb3 Nf8 12. Rad1 Ne6 13. Bc1 h6 14. Ne5 Bf8 15.  e3 c5 16. Qa2 Qd6 17. f4 Rad8 18. h3 Nc7 19. g4 Re7 20. g5 hxg5 21. fxg5 Nd7 22.  Ng4 b5 23. e4 cxd4 24. Bf4 Qb6 25. Nxd5 Nxd5 26. exd5 Re2 27. Bf3 d3+ 28. Kh1  Qd4 29. Bc7 Rde8 30. g6 R8e4 0-1

[Event "SUNWAY"]
[Date "2016.12.17"]
[Round "2.4"]
[White "Romanov, Evgeny"]
[Black "Alonso Bouza, Julio Javier"]
[Result "1-0"]
[WhiteElo "2622"]
[BlackElo "2365"]
[ECO "A48"]
[WhiteFed "RUS"]
[BlackFed "CUB"]
[FCGameId "1032884239"]
[TimeControl "5400+30"]

1. d4 {[%clk 1:28:47]} Nf6 {[%clk 1:30:48]} 2. Nf3 {[%clk 1:29:05]} g6  {[%clk 1:30:09]} 3. Nc3 {[%clk 1:25:03]} d5 {[%clk 1:27:23]} 4. Bf4  {[%clk 1:25:10]} Bg7 {[%clk 1:26:08]} 5. Nb5 {[%clk 1:25:31]} Na6  {[%clk 1:26:19]} 6. e3 {[%clk 1:25:55]} c6 {[%clk 1:19:30]} 7. Nc3  {[%clk 1:26:06]} Nc7 {[%clk 1:16:00]} 8. Be2 {[%clk 1:26:26]} Bg4  {[%clk 1:04:18]} 9. h3 {[%clk 1:24:40]} Bxf3 {[%clk 1:02:11]} 10. Bxf3  {[%clk 1:25:03]} Nb5 {[%clk 1:01:52]} 11. Nxb5 {[%clk 1:19:42]} cxb5  {[%clk 1:02:21]} 12. c3 {[%clk 1:19:43]} O-O {[%clk 0:55:49]} 13. Qb3  {[%clk 1:18:24]} Qd7 {[%clk 0:52:42]} 14. O-O {[%clk 1:18:22]} a6  {[%clk 0:45:26]} 15. a4 {[%clk 1:17:29]} bxa4 {[%clk 0:42:24]} 16. Rxa4  {[%clk 1:17:51]} e6 {[%clk 0:19:18]} 17. c4 {[%clk 1:11:26]} Ne4  {[%clk 0:19:18]} 18. Bxe4 {[%clk 0:59:50]} dxe4 {[%clk 0:19:47]} 19. Rb4  {[%clk 1:00:04]} Ra7 {[%clk 0:19:37]} 20. Rb6 {[%clk 0:56:55]} Rc8  {[%clk 0:17:14]} 21. Rd1 {[%clk 0:56:28]} h6 22. c5 {[%clk 0:51:08]} g5  {[%clk 0:05:59]} 23. Bg3 {[%clk 0:47:42]} Bf8 {[%clk 0:05:06]} 24. d5  {[%clk 0:46:07]} Rd8 {[%clk 0:05:22]} 25. Bd6 {[%clk 0:37:43]} Bg7  {[%clk 0:00:55]} 26. dxe6 {[%clk 0:36:17]} fxe6 {[%clk 0:01:17]} 27. Qc4  {[%clk 0:35:46]} Qf7 {[%clk 0:00:35]} 28. Qxe4 {[%clk 0:36:06]} Qf5  {[%clk 0:00:41]} 29. Qc4 {[%clk 0:36:13]} Rd7 {[%clk 0:00:41]} 30. e4  {[%clk 0:36:04]} Qf7 {[%clk 0:00:32]} 31. Rd3 {[%clk 0:36:20]} Ra8  {[%clk 0:00:35]} 32. Qb3 {[%clk 0:32:10]} Rad8 {[%clk 0:00:41]} 33. Rf3  {[%clk 0:31:52]} Qg6 {[%clk 0:01:01]} 34. Rxb7 {[%clk 0:29:49]} Qxe4  {[%clk 0:01:24]} 35. Rxd7 {[%clk 0:30:12]} Rxd7 {[%clk 0:01:53]} 36. Re3  {[%clk 0:27:29]} Qd5 37. Qxd5 exd5 38. c6 {[%clk 0:24:20]} Rxd6 {[%clk 0:03:16]}  39. c7 {[%clk 0:24:41]} Rc6 {[%clk 0:03:43]} 40. Re8+ {[%clk 0:55:05]} Kf7  {[%clk 0:33:33]} 41. c8=Q {[%clk 0:55:23]} Rxc8 {[%clk 0:34:02]} 42. Rxc8  {[%clk 0:55:46]} Bxb2 {[%clk 0:34:03]} 43. Ra8 {[%clk 0:56:03]} Bf6  {[%clk 0:23:54]} 44. Rxa6 {[%clk 0:53:58]} h5 {[%clk 0:23:43]} 45. g3  {[%clk 0:54:18]} h4 {[%clk 0:23:09]} 46. Kg2 {[%clk 0:52:30]} Kg6  {[%clk 0:20:30]} 47. gxh4 {[%clk 0:51:32]} gxh4 {[%clk 0:20:59]} 48. Ra5  {[%clk 0:51:41]} 1-0

[Event "SUNWAY"]
[Date "2016.12.17"]
[Round "2.5"]
[White "Meister, Peter"]
[Black "Postny, Evgeny"]
[Result "0-1"]
[WhiteElo "2366"]
[BlackElo "2620"]
[ECO "D26"]
[WhiteFed "GER"]
[BlackFed "ISR"]
[FCGameId "-2061221976"]
[TimeControl "5400+30"]

1. d4 {[%clk 1:30:58]} d5 {[%clk 1:27:17]} 2. c4 {[%clk 1:31:10]} dxc4  {[%clk 1:27:36]} 3. Nf3 {[%clk 1:31:06]} Nf6 {[%clk 1:27:58]} 4. e3  {[%clk 1:31:11]} e6 {[%clk 1:28:14]} 5. Bxc4 {[%clk 1:31:24]} a6  {[%clk 1:28:39]} 6. a4 {[%clk 1:22:44]} b6 {[%clk 1:28:58]} 7. O-O  {[%clk 1:22:30]} Bb7 {[%clk 1:29:22]} 8. Qe2 {[%clk 1:20:46]} Bb4  {[%clk 1:26:05]} 9. Rd1 {[%clk 1:17:57]} O-O {[%clk 1:23:58]} 10. Nc3  {[%clk 1:09:36]} Nbd7 {[%clk 1:23:09]} 11. Bd2 {[%clk 0:45:25]} c5  {[%clk 1:22:25]} 12. Be1 {[%clk 0:36:27]} Qe7 {[%clk 1:17:05]} 13. dxc5  {[%clk 0:20:37]} Bxc5 {[%clk 1:15:21]} 14. h3 {[%clk 0:16:47]} Rfc8  {[%clk 1:11:58]} 15. Bb3 {[%clk 0:13:31]} Bb4 {[%clk 1:05:00]} 16. Bc2  {[%clk 0:10:23]} Nc5 {[%clk 1:01:29]} 17. Rd4 {[%clk 0:10:02]} a5  {[%clk 1:01:17]} 18. Nb5 {[%clk 0:06:56]} Nd5 {[%clk 0:48:48]} 19. Ne5  {[%clk 0:05:02]} Qg5 {[%clk 0:37:45]} 20. f4 {[%clk 0:04:43]} Qe7  {[%clk 0:36:36]} 21. Nc4 {[%clk 0:01:55]} Bxe1 {[%clk 0:33:15]} 22. Rxe1  {[%clk 0:02:06]} Rf8 {[%clk 0:19:53]} 23. Red1 {[%clk 0:01:35]} Rab8  {[%clk 0:19:49]} 24. R1d2 {[%clk 0:00:52]} Nb4 {[%clk 0:19:03]} 25. Bd1  {[%clk 0:00:39]} Ne4 {[%clk 0:14:03]} 26. Rd7 {[%clk 0:00:48]} Qf6  {[%clk 0:14:19]} 27. R2d4 {[%clk 0:00:41]} Nc5 {[%clk 0:06:29]} 28. R7d6  {[%clk 0:00:37]} Nc6 {[%clk 0:06:28]} 29. Nxb6 {[%clk 0:00:32]} Nxd4  {[%clk 0:06:37]} 30. exd4 {[%clk 0:00:44]} Ne4 {[%clk 0:06:46]} 0-1

[Event "SUNWAY"]
[Date "2016.12.17"]
[Round "2.6"]
[White "Edouard, Romain"]
[Black "Dedebas, Emre Emin"]
[Result "1-0"]
[WhiteElo "2611"]
[BlackElo "2358"]
[ECO "D20"]
[WhiteFed "FRA"]
[BlackFed "TUR"]
[FCGameId "262526680"]
[TimeControl "5400+30"]

1. d4 {[%clk 1:26:30]} d5 {[%clk 1:30:45]} 2. c4 {[%clk 1:26:56]} dxc4  {[%clk 1:31:08]} 3. e4 {[%clk 1:27:20]} Nf6 {[%clk 1:31:27]} 4. e5  {[%clk 1:27:38]} Nd5 {[%clk 1:31:41]} 5. Bxc4 {[%clk 1:28:04]} Nb6  {[%clk 1:31:47]} 6. Bd3 {[%clk 1:28:09]} Nc6 {[%clk 1:31:03]} 7. Ne2  {[%clk 1:27:53]} g6 {[%clk 1:30:57]} 8. Nbc3 {[%clk 1:24:08]} Bg7  {[%clk 1:30:56]} 9. a3 {[%clk 1:22:46]} O-O {[%clk 1:25:04]} 10. Be3  {[%clk 1:23:11]} Be6 {[%clk 1:08:21]} 11. h4 {[%clk 1:20:37]} Nc4  {[%clk 0:48:32]} 12. Qc2 {[%clk 1:13:28]} Nxe3 {[%clk 0:30:15]} 13. fxe3  {[%clk 1:13:43]} Na5 {[%clk 0:29:03]} 14. Ne4 {[%clk 1:07:27]} Nb3  {[%clk 0:26:26]} 15. Rd1 {[%clk 1:06:30]} c5 {[%clk 0:26:39]} 16. Bc4  {[%clk 0:54:58]} Qa5+ {[%clk 0:23:07]} 17. Kf1 {[%clk 0:52:23]} cxd4  {[%clk 0:23:03]} 18. Bxb3 {[%clk 0:43:54]} Rac8 {[%clk 0:21:57]} 19. Qd3  {[%clk 0:44:21]} Bxb3 {[%clk 0:17:59]} 20. Qxb3 {[%clk 0:44:48]} Qxe5  {[%clk 0:18:20]} 21. Rxd4 {[%clk 0:38:07]} Qf5+ {[%clk 0:16:56]} 22. Nf2  {[%clk 0:38:33]} Bxd4 {[%clk 0:15:04]} 23. Nxd4 {[%clk 0:38:55]} Qf6  {[%clk 0:13:11]} 24. Ke2 {[%clk 0:30:47]} Qa6+ {[%clk 0:07:42]} 25. Kf3  {[%clk 0:22:56]} e5 {[%clk 0:05:00]} 26. Ne2 {[%clk 0:23:15]} Rc6  {[%clk 0:03:54]} 27. Nc3 {[%clk 0:22:33]} Rb6 {[%clk 0:01:50]} 28. Qa2  {[%clk 0:22:13]} Rd8 {[%clk 0:01:39]} 29. b4 {[%clk 0:18:57]} Rbd6  {[%clk 0:00:36]} 30. Nce4 {[%clk 0:11:30]} Rc6 {[%clk 0:00:32]} 31. g4  {[%clk 0:07:20]} Rdc8 {[%clk 0:00:48]} 32. Qd5 {[%clk 0:04:52]} Rc2  {[%clk 0:01:01]} 33. b5 {[%clk 0:05:13]} Qxa3 {[%clk 0:00:32]} 34. h5 Qa2  {[%clk 0:00:32]} 35. Qxe5 {[%clk 0:01:59]} Qe6 {[%clk 0:00:44]} 36. Nf6+  {[%clk 0:01:25]} Kf8 {[%clk 0:00:37]} 37. Nxh7+ {[%clk 0:00:37]} Ke7  {[%clk 0:01:03]} 38. Qxe6+ {[%clk 0:00:55]} fxe6 {[%clk 0:01:01]} 39. Ne4  {[%clk 0:00:41]} gxh5 {[%clk 0:00:52]} 40. gxh5 {[%clk 0:30:38]} Rh8  {[%clk 0:30:47]} 41. Nhf6 {[%clk 0:25:56]} a5 {[%clk 0:21:50]} 42. Rd1  {[%clk 0:17:34]} Rd8 {[%clk 0:21:07]} 43. Rxd8 {[%clk 0:14:56]} Kxd8  {[%clk 0:21:31]} 44. h6 Rh2 {[%clk 0:21:41]} 45. h7 {[%clk 0:15:52]} a4  {[%clk 0:22:04]} 46. Kg4 {[%clk 0:16:15]} Rxh7 {[%clk 0:15:29]} 47. Nxh7  {[%clk 0:16:41]} a3 {[%clk 0:15:52]} 48. Nc3 {[%clk 0:17:07]} Kc7  {[%clk 0:15:26]} 49. Kf4 {[%clk 0:17:16]} 1-0

[Event "SUNWAY"]
[Date "2016.12.17"]
[Round "2.7"]
[White "Iniyan, P"]
[Black "Vocaturo, Daniele"]
[Result "1/2-1/2"]
[WhiteElo "2363"]
[BlackElo "2606"]
[ECO "E00"]
[WhiteFed "IND"]
[BlackFed "ITA"]
[FCGameId "-2123348337"]
[TimeControl "5400+30"]

1. d4 {[%clk 1:30:52]} e6 {[%clk 1:30:18]} 2. c4 {[%clk 1:31:05]} Bb4+  {[%clk 1:29:48]} 3. Bd2 {[%clk 1:31:27]} a5 {[%clk 1:29:16]} 4. Nf3  {[%clk 1:31:24]} Nf6 {[%clk 1:28:19]} 5. a3 {[%clk 1:29:09]} Bxd2+  {[%clk 1:28:10]} 6. Nbxd2 {[%clk 1:29:32]} d6 {[%clk 1:26:29]} 7. b4  {[%clk 1:23:42]} O-O {[%clk 1:23:09]} 8. e3 {[%clk 1:23:36]} Re8 9. c5  {[%clk 1:13:06]} axb4 {[%clk 1:14:41]} 10. axb4 {[%clk 1:13:27]} Rxa1  {[%clk 1:14:20]} 11. Qxa1 {[%clk 1:13:52]} Nc6 12. Qb2 {[%clk 1:03:13]} dxc5  {[%clk 1:10:36]} 13. dxc5 {[%clk 0:50:45]} Qe7 14. Bb5 {[%clk 0:33:23]} Bd7  {[%clk 1:08:18]} 15. O-O {[%clk 0:22:18]} e5 {[%clk 1:02:14]} 16. Ra1  {[%clk 0:21:43]} e4 {[%clk 1:00:53]} 17. Bxc6 Bxc6 {[%clk 1:01:13]} 18. Nd4  {[%clk 0:22:00]} Bd5 {[%clk 0:58:12]} 19. Nf1 {[%clk 0:17:53]} g6  {[%clk 0:55:58]} 20. Ng3 {[%clk 0:15:02]} Ng4 {[%clk 0:55:31]} 21. h3  {[%clk 0:13:48]} Ne5 {[%clk 0:54:39]} 22. Nge2 {[%clk 0:13:55]} Nd3  {[%clk 0:43:48]} 23. Qd2 Qf6 {[%clk 0:38:23]} 24. Nc3 {[%clk 0:11:09]} Bc4  {[%clk 0:35:22]} 25. Ra4 {[%clk 0:04:28]} c6 26. Ra7 Ba6 {[%clk 0:32:12]} 27. b5  {[%clk 0:04:35]} Bxb5 {[%clk 0:32:05]} 28. Ndxb5 {[%clk 0:03:56]} cxb5 29. Nxe4  {[%clk 0:03:58]} Rxe4 {[%clk 0:31:58]} 30. Qxd3 {[%clk 0:04:36]} Rc4  {[%clk 0:30:37]} 31. Rxb7 {[%clk 0:03:07]} Rxc5 32. Rxb5 {[%clk 0:03:33]} Rc1+  {[%clk 0:28:49]} 33. Kh2 {[%clk 0:02:19]} Qxf2 {[%clk 0:27:59]} 34. Rb8+ Kg7  1/2-1/2